bitfinex/quotes_BTCUSD_20250904
["timestamp","ask_amount","ask_price","bid_price","bid_amount"]
[1756952876091,1.22226238,111710.0,111700.0,0.002]
[1756952876744,1.22226238,111710.0,111700.0,0.001]
[1756952876949,0.20002191,111680.0,111670.0,0.22012]
[1756952877152,0.64186565,111680.0,111670.0,0.22012]
[1756952877354,0.64694565,111680.0,111670.0,0.22012]
[1756952878246,0.64708596,111680.0,111670.0,0.22012]
[1756952878687,0.17909913,111670.0,111660.0,0.0004]
[1756952878930,0.17909913,111670.0,111660.0,0.15168]
[1756952879059,0.17909913,111670.0,111660.0,0.00255]
[1756952879254,0.5949206,111670.0,111660.0,0.15383]
[1756952879481,0.62602287,111670.0,111660.0,0.15383]
[1756952879735,0.2102014,111670.0,111660.0,0.15168]
[1756952879890,0.2190427,111670.0,111660.0,0.15383]
[1756952880091,0.71082968,111680.0,111660.0,0.33594517]
[1756952880310,0.71959551,111680.0,111660.0,0.33594517]
[1756952880506,0.17909913,111670.0,111660.0,0.33594517]
[1756952880728,0.17909913,111670.0,111660.0,0.33894517]
[1756952880947,0.17909913,111670.0,111660.0,0.18766517]
[1756952881156,0.18417913,111670.0,111660.0,0.33910517]
[1756952881354,0.17909913,111670.0,111660.0,0.33910517]
[1756952881535,0.30084404,111680.0,111660.0,0.33910517]
[1756952881750,0.30377404,111680.0,111660.0,0.34218517]
[1756952882090,0.71959551,111680.0,111660.0,0.34218517]
[1756952882492,0.71959551,111680.0,111660.0,0.33918517]
[1756952882695,0.30377404,111680.0,111660.0,0.33918517]
[1756952882914,0.71959551,111680.0,111660.0,0.33810517]
[1756952883509,0.71959551,111680.0,111660.0,0.33510517]
[1756952883912,0.30377404,111680.0,111660.0,0.33710517]
[1756952884112,0.17909913,111670.0,111660.0,0.33710517]
[1756952884330,0.18124913,111670.0,111660.0,0.18351517]
[1756952884543,0.71285541,111670.0,111660.0,0.0044]
[1756952884763,1.19399405,111670.0,111660.0,0.0044]
[1756952884984,1.13077052,111670.0,111660.0,0.0024]
[1756952885199,1.22700541,111670.0,111660.0,0.0054]
[1756952885620,1.22700541,111670.0,111660.0,0.0034]
[1756952885878,1.20425541,111670.0,111660.0,0.0034]
[1756952886057,1.20425541,111670.0,111660.0,0.0064]
[1756952886267,1.20425541,111670.0,111660.0,0.0034]
[1756952886477,1.20425541,111670.0,111660.0,0.0044]
[1756952886626,1.20425541,111670.0,111660.0,0.0014]
[1756952886829,1.20425541,111670.0,111660.0,0.0024]
[1756952887873,0.78843394,111670.0,111660.0,0.0024]
[1756952888074,1.20425541,111670.0,111660.0,0.0024]
[1756952889406,0.78843394,111670.0,111660.0,0.0024]
[1756952889618,1.20425541,111670.0,111660.0,0.0024]
[1756952890449,0.63410394,111670.0,111660.0,0.00454]
[1756952890655,0.20003795,111670.0,111660.0,0.00454]
[1756952890861,0.1792234,111680.0,111660.0,0.18673517]
[1756952891069,0.5192234,111680.0,111670.0,0.15395873]
[1756952891271,0.5192234,111680.0,111670.0,0.15609873]
[1756952891703,0.54016222,111680.0,111670.0,0.15609873]
[1756952892106,0.20016222,111680.0,111670.0,0.33295913]
[1756952892879,0.20116222,111680.0,111670.0,0.33295913]
[1756952893080,0.20016222,111680.0,111670.0,0.33603913]
[1756952893555,0.20116222,111680.0,111670.0,0.33603913]
[1756952894370,0.20116222,111680.0,111670.0,0.33295913]
[1756952895554,0.1802234,111680.0,111670.0,0.33295913]
[1756952896255,0.1802234,111680.0,111670.0,0.33603913]
[1756952896659,0.00114031,111680.0,111670.0,0.33603913]
[1756952898637,0.1802234,111680.0,111670.0,0.33603913]
[1756952898868,0.1802234,111680.0,111670.0,0.33295913]
[1756952900746,0.1802234,111680.0,111670.0,0.15378]
[1756952901225,0.17909913,111670.0,111660.0,0.0004]
[1756952901436,0.17909913,111670.0,111660.0,0.152]
[1756952901581,0.18434913,111670.0,111660.0,0.15414]
[1756952901786,0.17909913,111670.0,111660.0,0.15414]
[1756952902191,0.18112913,111670.0,111660.0,0.15414]
[1756952902411,0.2071514,111670.0,111660.0,0.15414]
[1756952902851,0.2103714,111670.0,111660.0,0.15614]
[1756952905401,0.1792234,111680.0,111660.0,0.18365517]
[1756952905603,0.18144987,111680.0,111660.0,0.33829517]
[1756952905775,0.20238869,111680.0,111670.0,0.17909913]
[1756952905966,0.20238869,111680.0,111670.0,0.18347786]
[1756952905967,0.20016222,111680.0,111670.0,0.18347786]
[1756952906200,0.20016222,111680.0,111670.0,0.18123913]
[1756952906401,0.00014031,111680.0,111670.0,0.18123913]
[1756952906626,0.1844734,111680.0,111670.0,0.15366]
[1756952906873,0.1854734,111680.0,111670.0,0.15366]
[1756952907085,0.1854734,111680.0,111670.0,0.15362]
[1756952908968,0.17909913,111670.0,111660.0,0.17951517]
[1756952909180,0.17909913,111670.0,111660.0,0.33309517]
[1756952909614,0.17909913,111670.0,111660.0,0.18165517]
[1756952909816,0.17909913,111670.0,111660.0,0.33309517]
[1756952910033,0.17909913,111670.0,111660.0,0.15494]
[1756952910277,0.17909913,111670.0,111660.0,0.33405517]
[1756952910442,0.17909913,111670.0,111660.0,0.33505517]
[1756952910613,0.2051214,111670.0,111660.0,0.33505517]
[1756952911485,0.2051214,111670.0,111660.0,0.18365517]
[1756952911657,0.2051214,111670.0,111660.0,0.33505517]
[1756952912112,0.2051214,111670.0,111660.0,0.33501517]
[1756952913617,0.17909913,111670.0,111660.0,0.33501517]
[1756952914185,0.18434913,111670.0,111660.0,0.18151517]
[1756952914391,0.18434913,111670.0,111660.0,0.33279517]
[1756952914591,0.18434913,111670.0,111660.0,0.18151517]
[1756952914792,0.2103714,111670.0,111660.0,0.15368]
[1756952915052,0.18434913,111670.0,111660.0,0.15368]
[1756952915254,0.2103714,111670.0,111660.0,0.15368]
[1756952915622,0.52256933,111670.0,111660.0,0.15368]
[1756952918257,0.2103714,111670.0,111660.0,0.15368]
[1756952919685,0.2031826,111680.0,111670.0,0.17909913]
[1756952919889,0.17922378,111680.0,111670.0,0.49337706]
[1756952920111,0.17909913,111670.0,111660.0,0.33279517]
[1756952920294,0.18108913,111670.0,111660.0,0.33279517]
[1756952920600,0.18410913,111670.0,111660.0,0.0024]
[1756952920799,0.18410913,111670.0,111660.0,0.1528]
[1756952921434,0.18410913,111670.0,111660.0,0.1518]
[1756952922638,0.18410913,111670.0,111660.0,0.1538]
[1756952924845,0.18410913,111670.0,111660.0,0.0024]
[1756952925049,0.18410913,111670.0,111660.0,0.157379]
[1756952925282,0.18410913,111670.0,111660.0,0.006019]
[1756952925495,0.18410913,111670.0,111660.0,0.33649417]
[1756952926072,0.18410913,111670.0,111660.0,0.33645417]
[1756952926280,0.00501,111670.0,111660.0,0.6486521]
[1756952926435,0.00501,111670.0,111660.0,0.6507321]
[1756952927237,0.17909913,111670.0,111660.0,0.6507321]
[1756952927657,0.49444171,111680.0,111660.0,0.6507321]
[1756952927863,0.2031826,111680.0,111670.0,0.18133786]
[1756952928064,0.2051726,111680.0,111670.0,0.18133786]
[1756952928286,0.2051726,111680.0,111670.0,0.00223873]
[1756952928468,0.51737053,111680.0,111670.0,0.00223873]
[1756952928673,0.51737053,111680.0,111660.0,0.6476521]
[1756952928674,0.17909913,111670.0,111660.0,0.6430331]
[1756952928878,0.18410913,111670.0,111660.0,0.1538]
[1756952929083,0.18410913,111670.0,111660.0,0.6451131]
[1756952930364,0.18410913,111670.0,111660.0,0.6461131]
[1756952931341,0.18410913,111670.0,111660.0,0.33183517]
[1756952931581,0.18108913,111670.0,111660.0,0.6461131]
[1756952931774,0.18410913,111670.0,111660.0,0.6471131]
[1756952934302,0.00501,111670.0,111660.0,0.6471131]
[1756952935263,0.18410913,111670.0,111660.0,0.6471131]
[1756952936672,0.18410913,111670.0,111660.0,0.33757898]
[1756952936907,0.18410913,111670.0,111660.0,0.64977691]
[1756952937108,0.18108913,111670.0,111660.0,0.64977691]
[1756952937313,0.18410913,111670.0,111660.0,0.64977691]
[1756952938298,0.18410913,111670.0,111660.0,0.71861691]
[1756952938927,0.18410913,111670.0,111660.0,0.40641898]
[1756952939138,0.18410913,111670.0,111660.0,0.71861691]
[1756952939356,0.18410913,111670.0,111660.0,0.40641898]
[1756952939579,0.18410913,111670.0,111660.0,0.71861691]
[1756952939786,0.18410913,111670.0,111660.0,0.07598381]
[1756952939991,0.18410913,111670.0,111660.0,0.71853691]
[1756952942075,0.2001626,111680.0,111670.0,0.17909913]
[1756952942305,0.18423378,111680.0,111670.0,0.18117913]
[1756952942479,0.18423378,111680.0,111660.0,0.71943691]
[1756952942675,0.18423378,111680.0,111670.0,0.17909913]
[1756952943004,0.18423378,111680.0,111670.0,0.18117913]
[1756952943610,0.18523378,111680.0,111670.0,0.18117913]
[1756952945384,0.18423378,111680.0,111670.0,0.18117913]
[1756952945719,0.18523378,111680.0,111670.0,0.18117913]
[1756952945948,0.18423378,111680.0,111670.0,0.18217913]
[1756952946375,0.18423378,111680.0,111670.0,0.18317913]
[1756952946910,0.17922378,111680.0,111670.0,0.49537706]
[1756952947092,0.00014031,111680.0,111670.0,0.49537706]
[1756952947475,0.00014031,111680.0,111670.0,0.49835706]
[1756952947681,0.1792234,111680.0,111670.0,0.49835706]
[1756952948889,0.1792234,111680.0,111670.0,0.49537706]
[1756952949136,0.1813334,111680.0,111670.0,0.18317913]
[1756952949301,0.1845534,111680.0,111670.0,0.15524]
[1756952949529,0.1845534,111680.0,111670.0,0.15536]
[1756952950737,0.1845534,111680.0,111670.0,0.33445913]
[1756952951690,0.1792234,111680.0,111670.0,0.64973706]
[1756952951907,0.1845534,111680.0,111670.0,0.15324]
[1756952952605,0.1845534,111680.0,111670.0,0.002]
[1756952952782,0.49675133,111680.0,111670.0,0.15324]
[1756952952992,0.1845534,111680.0,111670.0,0.15324]
[1756952953716,0.1845534,111680.0,111670.0,0.1534]
[1756952953954,0.1845534,111680.0,111670.0,0.15544]
[1756952954360,0.1792234,111680.0,111670.0,0.33677786]
[1756952954568,0.1792234,111680.0,111670.0,0.33453913]
[1756952956593,0.1845534,111680.0,111670.0,0.1534]
[1756952956814,0.49675133,111680.0,111670.0,0.002]
[1756952957020,0.49675133,111680.0,111670.0,0.1534]
[1756952957234,0.1845534,111680.0,111670.0,0.46559793]
[1756952957545,0.1845534,111680.0,111670.0,0.1534]
[1756952959742,0.1845534,111680.0,111670.0,0.33453913]
[1756952960394,0.1845534,111680.0,111670.0,0.15544]
[1756952960598,0.1845534,111680.0,111670.0,0.00404]
[1756952960769,0.1845534,111680.0,111670.0,0.15925575]
[1756952961534,0.1845534,111680.0,111670.0,0.00773575]
[1756952961747,0.1845534,111680.0,111670.0,0.15925575]
[1756952962008,0.1845534,111680.0,111670.0,0.47145368]
[1756952962565,0.1845534,111680.0,111670.0,0.00569575]
[1756952962772,0.1845534,111680.0,111670.0,0.15713575]
[1756952964031,0.1845534,111680.0,111670.0,0.00569575]
[1756952964239,0.1845534,111680.0,111670.0,0.15717575]
[1756952964730,0.20891091,111680.0,111670.0,0.15717575]
[1756952966252,0.20891091,111680.0,111670.0,0.15709575]
[1756952972989,0.20891091,111680.0,111670.0,0.15705575]
[1756952974323,0.20891091,111680.0,111670.0,0.00569575]
[1756952974885,0.20891091,111680.0,111670.0,0.15701575]
[1756952976162,0.20891091,111680.0,111670.0,0.15697575]
[1756952977715,0.20891091,111680.0,111660.0,0.00307543]
[1756952977716,0.54003795,111670.0,111660.0,0.00307543]
[1756952977947,1.12688187,111670.0,111660.0,0.00307543]
[1756952978156,1.13221187,111670.0,111660.0,0.00307543]
[1756952978363,0.66118394,111670.0,111660.0,0.00307543]
[1756952978571,0.54536795,111670.0,111660.0,0.00307543]
[1756952978784,0.57107082,111670.0,111660.0,0.00307543]
[1756952979809,0.57207082,111670.0,111660.0,0.00307543]
[1756952980196,0.57107082,111670.0,111660.0,0.00307543]
[1756952980573,0.57307082,111670.0,111660.0,0.00307543]
[1756952981227,0.57507082,111670.0,111660.0,0.00307543]
[1756952981429,0.57307082,111670.0,111660.0,0.00307543]
[1756952981631,0.57107082,111670.0,111660.0,0.00307543]
[1756952982331,0.98925304,111670.0,111660.0,0.00307543]
[1756952986181,0.57307082,111670.0,111660.0,0.00307543]
[1756952986344,0.98925304,111670.0,111660.0,0.00307543]
[1756952987330,1.08116903,111670.0,111660.0,0.00307543]
[1756952989089,1.10519903,111670.0,111660.0,0.00307543]
[1756952989734,1.19711502,111670.0,111660.0,0.00307543]
[1756952989934,1.10519903,111670.0,111660.0,0.00307543]
[1756952990604,1.13434189,111670.0,111660.0,0.00307543]
[1756952991836,1.26151189,111670.0,111660.0,0.00307543]
[1756952992038,1.26147189,111670.0,111660.0,0.00307543]
[1756952993752,1.11031189,111670.0,111660.0,0.00307543]
[1756952993924,1.26147189,111670.0,111660.0,0.00307543]
[1756952995318,1.37286688,111670.0,111660.0,0.00307543]
[1756952995722,1.22170688,111670.0,111660.0,0.00307543]
[1756952995938,1.37278688,111670.0,111660.0,0.00307543]
[1756952997414,1.37270548,111670.0,111660.0,0.00307543]
[1756952997646,1.28525909,111670.0,111660.0,0.00307543]
[1756952997994,1.13417909,111670.0,111660.0,0.00307543]
[1756952998255,1.28525909,111670.0,111660.0,0.00307543]
[1756952998441,1.35409909,111670.0,111660.0,0.00307543]
[1756952998644,1.44601508,111670.0,111660.0,0.00307543]
[1756952999304,1.48716361,111670.0,111660.0,0.00307543]
[1756952999565,1.48716361,111670.0,111660.0,1e-08]
[1756952999566,1.90334583,111670.0,111660.0,1e-08]
[1756952999745,0.54007003,111650.0,111640.0,1e-08]
[1756952999978,1.57089641,111650.0,111640.0,1e-08]
[1756953000188,1.75206056,111650.0,111640.0,1e-08]
[1756953000418,1.08856752,111640.0,111630.0,0.00407591]
[1756953000623,1.33603351,111640.0,111630.0,0.00407591]
[1756953000889,1.33802351,111640.0,111630.0,0.00407591]
[1756953001093,1.4299395,111640.0,111630.0,0.00407591]
[1756953001501,1.4539695,111640.0,111630.0,0.00407591]
[1756953001722,1.45410973,111640.0,111630.0,0.00407591]
[1756953002582,1.03062529,111640.0,111630.0,1e-08]
[1756953002795,1.86298973,111640.0,111630.0,1e-08]
[1756953003223,0.17921146,111600.0,111580.0,0.18722212]
[1756953003448,0.59762015,111600.0,111580.0,0.18722212]
[1756953003654,0.27112745,111600.0,111580.0,0.18722212]
[1756953003869,0.27112789,111600.0,111580.0,0.18722212]
[1756953004296,0.27112789,111600.0,111570.0,0.6777363]
[1756953004297,0.17923272,111590.0,111570.0,0.26155408]
[1756953004951,0.17923272,111590.0,111580.0,0.18224359]
[1756953005595,0.69958565,111600.0,111580.0,0.18224359]
[1756953006033,0.28045343,111600.0,111580.0,0.17924359]
[1756953006240,0.70058565,111600.0,111580.0,0.18724359]
[1756953006446,0.17922752,111590.0,111580.0,0.18724359]
[1756953006651,0.17922752,111590.0,111580.0,0.16384]
[1756953007542,0.17922752,111590.0,111580.0,0.34308359]
[1756953007757,0.17922752,111590.0,111580.0,0.33808359]
[1756953007929,0.69958565,111600.0,111580.0,0.33808359]
[1756953008148,0.002,111590.0,111580.0,0.35008359]
[1756953008992,0.18122752,111590.0,111580.0,0.35008359]
[1756953009418,0.18122752,111590.0,111580.0,0.34708359]
[1756953010032,0.18122752,111590.0,111580.0,0.17184]
[1756953010243,0.18122752,111590.0,111580.0,0.35108359]
[1756953012315,0.18429752,111590.0,111580.0,0.35108359]
[1756953012437,0.18122752,111590.0,111580.0,0.35108359]
[1756953013469,0.18633752,111590.0,111580.0,0.19524359]
[1756953013682,0.18633752,111590.0,111580.0,0.35204359]
[1756953014007,0.18122752,111590.0,111580.0,0.35204359]
[1756953014515,0.002,111590.0,111580.0,0.35204359]
[1756953015785,0.18122752,111590.0,111580.0,0.35204359]
[1756953015991,0.002,111590.0,111580.0,0.35204359]
[1756953017071,0.002,111590.0,111580.0,0.8601418]
[1756953021753,0.002,111590.0,111580.0,0.28715958]
[1756953021966,0.002,111590.0,111580.0,0.44355958]
[1756953022434,0.002,111590.0,111580.0,0.28715958]
[1756953022653,0.18122752,111590.0,111580.0,0.35160359]
[1756953022867,0.18429752,111590.0,111580.0,0.35160359]
[1756953023463,0.18633752,111590.0,111580.0,0.19524359]
[1756953023670,0.18633752,111590.0,111580.0,0.35156359]
[1756953024080,0.18429752,111590.0,111580.0,0.35156359]
[1756953024650,0.18633752,111590.0,111580.0,0.35156359]
[1756953024892,0.002,111590.0,111580.0,0.35156359]
[1756953026511,0.18633752,111590.0,111580.0,0.19524359]
[1756953026723,0.18633752,111590.0,111580.0,0.35156359]
[1756953026926,0.002,111590.0,111580.0,0.35156359]
[1756953027535,0.00507,111590.0,111580.0,0.35156359]
[1756953028139,0.002,111590.0,111580.0,0.35156359]
[1756953029283,0.00507,111590.0,111580.0,0.35156359]
[1756953030114,0.18429752,111590.0,111580.0,0.35156359]
[1756953030870,0.00507,111590.0,111580.0,0.35156359]
[1756953032069,0.002,111590.0,111580.0,0.35156359]
[1756953033832,0.002,111590.0,111580.0,0.76774581]
[1756953034261,0.002,111590.0,111580.0,0.35156359]
[1756953036722,0.00507,111590.0,111580.0,0.35112359]
[1756953036919,0.002,111590.0,111580.0,0.35112359]
[1756953037585,0.002,111590.0,111580.0,0.66371689]
[1756953038531,0.002,111590.0,111580.0,1.06822618]
[1756953042298,0.002,111590.0,111580.0,1.1486098]
[1756953044454,0.002,111590.0,111580.0,0.5234232]
[1756953044676,0.002,111590.0,111580.0,1.1486098]
[1756953046884,0.002,111590.0,111580.0,0.5234232]
[1756953047091,0.002,111590.0,111580.0,1.1486098]
[1756953050119,0.002,111590.0,111580.0,0.9929698]
[1756953050511,0.00716,111590.0,111580.0,0.5230232]
[1756953050688,0.00716,111590.0,111580.0,0.8356165]
[1756953050895,0.00716,111590.0,111580.0,1.1482098]
[1756953051091,0.0051,111590.0,111580.0,0.5230232]
[1756953051316,0.0051,111590.0,111580.0,1.1482098]
[1756953051499,0.002,111590.0,111580.0,1.1482098]
[1756953051903,0.0051,111590.0,111580.0,1.1482098]
[1756953052106,0.00716,111590.0,111580.0,0.9929698]
[1756953052304,0.00716,111590.0,111580.0,1.1482098]
[1756953053343,0.0051,111590.0,111580.0,1.1482098]
[1756953053542,0.0051,111590.0,111580.0,0.5230232]
[1756953053745,0.0051,111590.0,111580.0,1.1482098]
[1756953054549,0.0051,111590.0,111580.0,0.5230232]
[1756953054774,0.0051,111590.0,111580.0,1.1482098]
[1756953056220,0.002,111590.0,111580.0,1.1482098]
[1756953056424,0.0051,111590.0,111580.0,1.1480098]
[1756953057416,0.0051,111590.0,111580.0,0.5228232]
[1756953057617,0.0051,111590.0,111580.0,1.1480098]
[1756953060136,0.002,111590.0,111580.0,1.1480098]
[1756953060606,0.0051,111590.0,111580.0,0.5228232]
[1756953060830,0.002,111590.0,111580.0,1.1480098]
[1756953061919,0.002,111590.0,111580.0,0.9929698]
[1756953061920,0.00716,111590.0,111580.0,0.9929698]
[1756953062105,0.0051,111590.0,111580.0,1.1480898]
[1756953063204,0.002,111590.0,111580.0,1.1480898]
[1756953063430,0.0051,111590.0,111580.0,1.1480898]
[1756953063656,0.00716,111590.0,111580.0,0.5229032]
[1756953063843,0.0051,111590.0,111580.0,1.1480898]
[1756953064149,0.002,111590.0,111580.0,1.1480898]
[1756953065765,0.002,111590.0,111580.0,0.5229032]
[1756953065944,0.002,111590.0,111580.0,1.1480898]
[1756953066561,0.00716,111590.0,111580.0,0.3677832]
[1756953066756,0.00716,111590.0,111580.0,1.1479298]
[1756953067239,0.002,111590.0,111580.0,1.1479298]
[1756953067657,0.002,111590.0,111580.0,1.06730618]
[1756953069457,0.002,111590.0,111580.0,1.17971306]
[1756953070904,0.002,111590.0,111580.0,0.86711976]
[1756953071076,0.002,111590.0,111580.0,1.17971306]
[1756953072191,0.00519,111590.0,111580.0,1.17971306]
[1756953072419,0.00519,111590.0,111580.0,1.17967306]
[1756953072620,0.00736,111590.0,111580.0,1.17967306]
[1756953072985,0.00736,111590.0,111580.0,1.06726618]
[1756953073996,0.00519,111590.0,111580.0,1.06726618]
[1756953074849,0.00736,111590.0,111580.0,0.44203958]
[1756953075057,0.00736,111590.0,111580.0,1.06722618]
[1756953075474,0.00736,111590.0,111580.0,0.28715958]
[1756953075673,0.03433415,111590.0,111580.0,0.52275678]
[1756953076096,0.03433415,111590.0,111580.0,0.52279678]
[1756953076459,0.03433415,111590.0,111580.0,0.83539008]
[1756953078633,0.00736,111590.0,111580.0,0.83539008]
[1756953080395,0.00736,111590.0,111580.0,0.52279678]
[1756953080628,0.00736,111590.0,111580.0,0.83539008]
[1756953083223,0.00736,111590.0,111580.0,1.14798338]
[1756953083224,0.002,111590.0,111580.0,1.14798338]
[1756953084039,0.002,111590.0,111580.0,1.06726618]
[1756953084482,0.002,111590.0,111580.0,0.52274724]
[1756953084682,0.002,111590.0,111580.0,1.14793384]
[1756953089254,0.002,111590.0,111580.0,1.06726618]
[1756953089496,0.002,111590.0,111580.0,1.14793685]
[1756953090924,0.00519,111590.0,111580.0,0.36783025]
[1756953091129,0.00519,111590.0,111580.0,0.83482355]
[1756953091581,0.00736,111590.0,111580.0,0.83478355]
[1756953091934,0.00736,111590.0,111580.0,0.68042355]
[1756953092147,0.00736,111590.0,111580.0,0.83478355]
[1756953092542,0.00736,111590.0,111580.0,0.36783025]
[1756953092788,0.3199533,111590.0,111580.0,0.36783025]
[1756953093000,0.00736,111590.0,111580.0,0.52267025]
[1756953093191,0.00736,111590.0,111580.0,0.83526355]
[1756953093928,0.00736,111590.0,111580.0,0.52267025]
[1756953094135,0.00736,111590.0,111580.0,0.75459288]
[1756953094733,0.00736,111590.0,111580.0,0.44199958]
[1756953094974,0.00736,111590.0,111580.0,0.75459288]
[1756953095529,0.00736,111590.0,111580.0,0.44199958]
[1756953095765,0.00736,111590.0,111580.0,0.75459288]
[1756953096200,0.00736,111590.0,111580.0,0.28715958]
[1756953096429,0.00736,111590.0,111580.0,0.75451288]
[1756953096910,0.00736,111590.0,111580.0,0.28715958]
[1756953097130,0.49918082,111590.0,111580.0,0.35000359]
[1756953097361,0.00736,111590.0,111580.0,0.35000359]
[1756953099360,0.18658752,111590.0,111580.0,0.35028359]
[1756953099853,0.00736,111590.0,111580.0,0.35028359]
[1756953100618,0.002,111590.0,111580.0,0.35028359]
[1756953105873,0.00719,111590.0,111580.0,0.35028359]
[1756953106294,0.00504,111590.0,111580.0,0.35028359]
[1756953106527,0.002,111590.0,111580.0,0.8589964]
[1756953108542,0.002,111590.0,111580.0,0.44219958]
[1756953108754,0.00719,111590.0,111580.0,0.44219958]
[1756953109643,0.00719,111590.0,111580.0,0.28715958]
[1756953109834,0.18641752,111590.0,111580.0,0.35252359]
[1756953111254,0.00719,111590.0,111580.0,0.35252359]
[1756953111458,0.00504,111590.0,111580.0,0.35252359]
[1756953111668,0.00504,111590.0,111580.0,0.44443958]
[1756953113076,0.002,111590.0,111580.0,0.44443958]
[1756953113285,0.00719,111590.0,111580.0,0.44443958]
[1756953115057,0.00504,111590.0,111580.0,0.44443958]
[1756953115261,0.00719,111590.0,111580.0,0.44443958]
[1756953116692,0.18641752,111590.0,111580.0,0.28715958]
[1756953116912,0.18641752,111590.0,111580.0,0.44435958]
[1756953117365,0.00719,111590.0,111580.0,0.44435958]
[1756953117583,0.18641752,111590.0,111580.0,0.35320359]
[1756953118398,0.18641752,111590.0,111580.0,0.17396]
[1756953119212,0.18641752,111590.0,111580.0,0.016]
[1756953119619,0.18641752,111590.0,111580.0,0.17392]
[1756953120810,0.18641752,111590.0,111580.0,0.35316359]
[1756953121251,0.18641752,111590.0,111580.0,0.17392]
[1756953121659,0.18641752,111590.0,111580.0,0.35316359]
[1756953121865,0.18641752,111590.0,111580.0,0.17392]
[1756953122498,0.18641752,111590.0,111580.0,0.17428]
[1756953123282,0.18641752,111590.0,111580.0,0.17672054]
[1756953124533,0.00719,111590.0,111580.0,0.35596413]
[1756953124798,0.00719,111590.0,111580.0,0.35372359]
[1756953125228,0.00504,111590.0,111580.0,0.35372359]
[1756953125688,0.18641752,111590.0,111580.0,0.35372359]
[1756953126103,0.00719,111590.0,111580.0,0.35372359]
[1756953127187,0.00504,111590.0,111580.0,0.35372359]
[1756953127647,0.00719,111590.0,111580.0,0.35372359]
[1756953128289,0.18641752,111590.0,111580.0,0.35424359]
[1756953128499,0.00719,111590.0,111580.0,0.35424359]
[1756953128930,0.18641752,111590.0,111580.0,0.35424359]
[1756953132036,0.18641752,111590.0,111580.0,0.19524359]
[1756953132262,0.60321434,111590.0,111580.0,0.17524]
[1756953132504,0.18641752,111590.0,111580.0,0.17748054]
[1756953133120,0.18641752,111590.0,111580.0,0.01824054]
[1756953133314,0.60321434,111590.0,111580.0,0.17732054]
[1756953135028,0.18641752,111590.0,111580.0,0.35656413]
[1756953135235,0.00719,111590.0,111580.0,0.35432359]
[1756953135658,0.18641752,111590.0,111580.0,0.35432359]
[1756953135957,0.00504,111590.0,111580.0,0.35432359]
[1756953136402,0.00708,111590.0,111580.0,0.35432359]
[1756953139566,0.00504,111590.0,111580.0,0.35432359]
[1756953140520,0.00708,111590.0,111580.0,0.35432359]
[1756953140729,0.00504,111590.0,111580.0,0.35432359]
[1756953141312,0.002,111590.0,111580.0,0.35432359]
[1756953141817,0.00521,111590.0,111580.0,0.35432359]
[1756953142946,0.18647752,111590.0,111580.0,0.35432359]
[1756953145018,0.00725,111590.0,111580.0,0.35432359]
[1756953145249,0.00521,111590.0,111580.0,0.35432359]
[1756953145968,0.002,111590.0,111580.0,0.35432359]
[1756953146759,0.00521,111590.0,111580.0,0.35432359]
[1756953146969,0.00725,111590.0,111580.0,0.35432359]
[1756953149378,0.00725,111590.0,111580.0,0.35274481]
[1756953150918,0.00521,111590.0,111580.0,0.35274481]
[1756953151882,0.18647752,111590.0,111580.0,0.01442122]
[1756953152097,0.22306078,111590.0,111580.0,0.17574122]
[1756953152318,0.18647752,111590.0,111580.0,0.17574122]
[1756953152756,0.60327434,111590.0,111580.0,0.17574122]
[1756953152962,0.18647752,111590.0,111580.0,0.17574122]
[1756953153141,0.60327434,111590.0,111580.0,0.17574122]
[1756953153382,0.18647752,111590.0,111580.0,0.17574122]
[1756953153768,0.60327434,111590.0,111580.0,0.17574122]
[1756953154397,0.18647752,111590.0,111580.0,0.17574122]
[1756953154601,0.60327434,111590.0,111580.0,0.17574122]
[1756953155018,0.18647752,111590.0,111580.0,0.17574122]
[1756953155442,0.60327434,111590.0,111580.0,0.17574122]
[1756953155644,0.18647752,111590.0,111580.0,0.17574122]
[1756953155850,0.60327434,111590.0,111580.0,0.17574122]
[1756953156059,0.18647752,111590.0,111580.0,0.17574122]
[1756953156265,0.60327434,111590.0,111580.0,0.17574122]
[1756953156929,0.18647752,111590.0,111580.0,0.17574122]
[1756953157152,0.60327434,111590.0,111580.0,0.17574122]
[1756953157602,0.52733427,111590.0,111580.0,0.17574122]
[1756953157826,0.18647752,111590.0,111580.0,0.17574122]
[1756953158060,0.49916343,111590.0,111580.0,0.17574122]
[1756953158275,0.18647752,111590.0,111580.0,0.17574122]
[1756953158748,0.49916343,111590.0,111580.0,0.17574122]
[1756953158964,0.18647752,111590.0,111580.0,0.17574122]
[1756953159186,0.49916343,111590.0,111580.0,0.17574122]
[1756953160604,0.18647752,111590.0,111580.0,0.17574122]
[1756953160799,0.49916343,111590.0,111580.0,0.17574122]
[1756953161259,0.49916343,111590.0,111580.0,0.01442122]
[1756953161459,0.49916343,111590.0,111580.0,0.18238122]
[1756953161675,0.49916343,111590.0,111580.0,0.18218122]
[1756953161904,0.52010225,111590.0,111580.0,0.18218122]
[1756953162128,0.20741634,111590.0,111580.0,0.18218122]
[1756953162353,0.52010225,111590.0,111580.0,0.18218122]
[1756953162572,0.31789591,111590.0,111580.0,0.36142481]
[1756953162792,0.002,111590.0,111580.0,0.36142481]
[1756953163014,0.31468591,111590.0,111580.0,0.36142481]
[1756953163680,0.49693343,111590.0,111580.0,0.43030481]
[1756953164159,0.31770591,111590.0,111580.0,0.43030481]
[1756953164386,0.00502,111590.0,111580.0,0.43030481]
[1756953164814,0.31770591,111590.0,111580.0,0.43030481]
[1756953165014,0.00502,111590.0,111580.0,0.43030481]
[1756953165245,0.31770591,111590.0,111580.0,0.43030481]
[1756953166287,0.002,111590.0,111580.0,1.14759262]
[1756953166900,0.002,111590.0,111580.0,1.22823002]
[1756953171270,0.002,111590.0,111580.0,0.6028582]
[1756953171474,0.002,111590.0,111580.0,1.27823002]
[1756953173231,0.002,111590.0,111580.0,1.59091593]
[1756953173454,0.002,111590.0,111580.0,1.62268541]
[1756953173665,0.002,111590.0,111580.0,1.19759262]
[1756953174302,0.002,111590.0,111580.0,1.51027853]
[1756953174509,0.002,111590.0,111580.0,1.62268541]
[1756953175700,0.002,111590.0,111580.0,1.96268541]
[1756953175907,0.002,111590.0,111580.0,2.01268541]
[1756953176521,1e-08,111590.0,111580.0,2.01268541]
[1756953176807,1e-08,111590.0,111580.0,1.90027853]
[1756953177410,1e-08,111590.0,111580.0,1.0747597]
[1756953177637,0.00014015,111600.0,111590.0,0.61922752]
[1756953177801,0.00014015,111600.0,111590.0,1.33651533]
[1756953177998,0.00014015,111600.0,111590.0,1.73651533]